[Event "*** SCC Grand Prix: Titled Tuesday Blitz"]
[Site "Chess.com"]
[Date "2020.08.11"]
[Round "6"]
[White "CrazyMartian"]
[Black "Roaccutane"]
[Result "1-0"]
[WhiteElo "2341"]
[BlackElo "2564"]
[TimeControl "180+1"]
[EndTime "11:06:12 PDT"]
[Termination "CrazyMartian won by resignation"]

1. d4 {[%clk 0:03:00.9]} 1... Nf6 {[%clk 0:02:58.7]} 2. Bf4 {[%clk 0:03:00.7]}
2... c5 {[%clk 0:02:58.7]} 3. e3 {[%clk 0:03:00.9]} 3... b6 {[%clk 0:02:58.8]}
4. c3 {[%clk 0:03:01.1]} 4... Bb7 {[%clk 0:02:59.4]} 5. Nd2 {[%clk 0:03:01.3]}
5... g6 {[%clk 0:02:59.9]} 6. Ngf3 {[%clk 0:03:01.6]} 6... Bg7 {[%clk
0:02:59.9]} 7. Bd3 {[%clk 0:03:00.7]} 7... O-O {[%clk 0:02:59.2]} 8. h3 {[%clk
0:03:01]} 8... d6 {[%clk 0:02:59.6]} 9. O-O {[%clk 0:03:00.6]} 9... Nbd7 {[%clk
0:02:56.4]} 10. Bh2 {[%clk 0:02:58.6]} 10... a6 {[%clk 0:02:52.9]} 11. Re1
{[%clk 0:02:58.2]} 11... Qc7 {[%clk 0:02:52.6]} 12. e4 {[%clk 0:02:57.6]} 12...
e5 {[%clk 0:02:50.8]} 13. d5 {[%clk 0:02:56.5]} 13... b5 {[%clk 0:02:50.6]} 14.
a4 {[%clk 0:02:56.5]} 14... c4 {[%clk 0:02:50.3]} 15. Bc2 {[%clk 0:02:56.8]}
15... Nc5 {[%clk 0:02:50.3]} 16. axb5 {[%clk 0:02:51.8]} 16... axb5 {[%clk
0:02:51.2]} 17. Qe2 {[%clk 0:02:52.2]} 17... Rfe8 {[%clk 0:02:35.2]} 18. Nf1
{[%clk 0:02:36.9]} 18... Qb6 {[%clk 0:02:23.7]} 19. N3d2 {[%clk 0:02:29]} 19...
Nh5 {[%clk 0:02:16]} 20. h4 {[%clk 0:02:18.2]} 20... Bh6 {[%clk 0:01:59.3]} 21.
Nf3 {[%clk 0:02:07.5]} 21... Nf4 {[%clk 0:01:16.8]} 22. Bxf4 {[%clk 0:02:06.7]}
22... Bxf4 {[%clk 0:01:17.7]} 23. g3 {[%clk 0:02:05.9]} 23... Bh6 {[%clk
0:01:17.6]} 24. Kg2 {[%clk 0:02:06.4]} 24... Rf8 {[%clk 0:01:13.6]} 25. Ne3
{[%clk 0:02:05.9]} 25... f6 {[%clk 0:01:03.5]} 26. h5 {[%clk 0:02:03.7]} 26...
Bg7 {[%clk 0:00:54.3]} 27. hxg6 {[%clk 0:01:57.6]} 27... hxg6 {[%clk 0:00:55.2]}
28. Nh4 {[%clk 0:01:56.3]} 28... f5 {[%clk 0:00:43.6]} 29. Nxg6 {[%clk
0:01:50.4]} 29... Nxe4 {[%clk 0:00:43.9]} 30. Bxe4 {[%clk 0:01:49]} 30... fxe4
{[%clk 0:00:44.8]} 31. Qg4 {[%clk 0:01:25.5]} 31... Rf6 {[%clk 0:00:32.8]} 32.
Rxa8+ {[%clk 0:01:24.2]} 32... Bxa8 {[%clk 0:00:32.7]} 33. Qc8+ {[%clk
0:01:22.7]} 33... Kf7 {[%clk 0:00:30.8]} 34. Nh8+ {[%clk 0:01:12.1]} 34... Bxh8
{[%clk 0:00:30.1]} 35. Qxh8 {[%clk 0:01:12.5]} 35... Bxd5 {[%clk 0:00:28.9]} 36.
Rh1 {[%clk 0:01:10.5]} 36... Bc6 {[%clk 0:00:16]} 37. Rh7+ {[%clk 0:01:09.4]}
37... Ke6 {[%clk 0:00:14.7]} 38. Qg8+ {[%clk 0:01:08.3]} 1-0

[Event "*** SCC Grand Prix: Titled Tuesday Blitz"]
[Site "Chess.com"]
[Date "2020.08.11"]
[Round "6"]
[White "Alex_Belezky"]
[Black "floplover"]
[Result "1-0"]
[WhiteElo "2502"]
[BlackElo "2298"]
[TimeControl "180+1"]
[EndTime "11:06:12 PDT"]
[Termination "Alex_Belezky won on time"]

1. Nf3 {[%clk 0:02:28.7]} 1... d5 {[%clk 0:02:56.7]} 2. g3 {[%clk 0:02:28.9]}
2... Nf6 {[%clk 0:02:56]} 3. Bg2 {[%clk 0:02:29.3]} 3... e6 {[%clk 0:02:56.5]}
4. d3 {[%clk 0:02:29.9]} 4... Be7 {[%clk 0:02:56.1]} 5. O-O {[%clk 0:02:30.6]}
5... O-O {[%clk 0:02:51.4]} 6. Nbd2 {[%clk 0:02:31.2]} 6... b6 {[%clk
0:02:49.7]} 7. e4 {[%clk 0:02:31.8]} 7... dxe4 {[%clk 0:02:46.9]} 8. Ng5 {[%clk
0:02:30.8]} 8... Bb7 {[%clk 0:02:44.2]} 9. Ngxe4 {[%clk 0:02:30.8]} 9... Qc8
{[%clk 0:02:42.5]} 10. Re1 {[%clk 0:02:29.9]} 10... c5 {[%clk 0:02:40.1]} 11.
Nc4 {[%clk 0:02:29.4]} 11... Nxe4 {[%clk 0:02:37]} 12. Bxe4 {[%clk 0:02:27.1]}
12... Nd7 {[%clk 0:02:30.3]} 13. Bf4 {[%clk 0:02:23.9]} 13... Nf6 {[%clk
0:02:17.2]} 14. Bf3 {[%clk 0:02:23.7]} 14... Rd8 {[%clk 0:02:08.4]} 15. Qe2
{[%clk 0:02:23]} 15... Bxf3 {[%clk 0:02:01.8]} 16. Qxf3 {[%clk 0:02:22.5]} 16...
Nd5 {[%clk 0:02:02.7]} 17. Bd2 {[%clk 0:02:22]} 17... Bf6 {[%clk 0:02:01.4]} 18.
a4 {[%clk 0:02:19.8]} 18... Qd7 {[%clk 0:01:37.1]} 19. h4 {[%clk 0:02:16.1]}
19... Rac8 {[%clk 0:01:34.2]} 20. h5 {[%clk 0:02:15.3]} 20... h6 {[%clk
0:01:31.7]} 21. Re4 {[%clk 0:02:12.8]} 21... Kh7 {[%clk 0:01:15.5]} 22. Rg4
{[%clk 0:02:10.8]} 22... Ne7 {[%clk 0:01:11.8]} 23. Re1 {[%clk 0:01:46.5]} 23...
Qd5 {[%clk 0:01:11.2]} 24. Rge4 {[%clk 0:01:37.1]} 24... Nf5 {[%clk 0:01:08.5]}
25. Bc3 {[%clk 0:01:28.5]} 25... Bxc3 {[%clk 0:01:03.4]} 26. bxc3 {[%clk
0:01:28.1]} 26... Rc7 {[%clk 0:00:57.3]} 27. g4 {[%clk 0:01:26.6]} 27... Nd6
{[%clk 0:00:54.3]} 28. Nxd6 {[%clk 0:01:17.5]} 28... Rxd6 {[%clk 0:00:55.2]} 29.
c4 {[%clk 0:01:16.7]} 29... Qg5 {[%clk 0:00:52.4]} 30. Qg3 {[%clk 0:01:09.6]}
30... Rcd7 {[%clk 0:00:49]} 31. f4 {[%clk 0:01:09.2]} 31... Qd8 {[%clk
0:00:44.7]} 32. g5 {[%clk 0:01:09]} 32... Rd4 {[%clk 0:00:38.5]} 33. g6+ {[%clk
0:01:08.5]} 33... fxg6 {[%clk 0:00:36.3]} 34. Qxg6+ {[%clk 0:01:06.8]} 34... Kh8
{[%clk 0:00:36]} 35. Rxe6 {[%clk 0:01:06.6]} 1-0

[Event "*** SCC Grand Prix: Titled Tuesday Blitz"]
[Site "Chess.com"]
[Date "2020.08.11"]
[Round "6"]
[White "PavelChernomordik"]
[Black "coocloo"]
[Result "1-0"]
[WhiteElo "2357"]
[BlackElo "2038"]
[TimeControl "180+1"]
[EndTime "11:06:14 PDT"]
[Termination "PavelChernomordik won by checkmate"]

1. e4 {[%clk 0:03:00.9]} 1... e5 {[%clk 0:02:59.4]} 2. Nf3 {[%clk 0:02:59.6]}
2... Nc6 {[%clk 0:02:58.9]} 3. Bb5 {[%clk 0:02:58]} 3... Bc5 {[%clk 0:02:57.8]}
4. O-O {[%clk 0:02:56.7]} 4... Nf6 {[%clk 0:02:57.6]} 5. Qe2 {[%clk 0:02:53.2]}
5... O-O {[%clk 0:02:54.7]} 6. c3 {[%clk 0:02:50.4]} 6... d6 {[%clk 0:02:47.2]}
7. h3 {[%clk 0:02:49.1]} 7... h6 {[%clk 0:02:45.5]} 8. b4 {[%clk 0:02:42.8]}
8... Bb6 {[%clk 0:02:44]} 9. a4 {[%clk 0:02:42.4]} 9... a5 {[%clk 0:02:22.4]}
10. bxa5 {[%clk 0:02:39.9]} 10... Rxa5 {[%clk 0:02:14.5]} 11. d3 {[%clk
0:02:30.8]} 11... Bd7 {[%clk 0:02:13.6]} 12. Na3 {[%clk 0:02:24.7]} 12... Ra8
{[%clk 0:02:11.3]} 13. Nc4 {[%clk 0:02:20.9]} 13... Ba5 {[%clk 0:02:06.8]} 14.
Nxa5 {[%clk 0:02:13.8]} 14... Rxa5 {[%clk 0:02:06]} 15. Nh4 {[%clk 0:02:04.3]}
15... Ne7 {[%clk 0:02:02.9]} 16. Bc4 {[%clk 0:01:55.5]} 16... Rxa4 {[%clk
0:01:57.2]} 17. Rxa4 {[%clk 0:01:52.6]} 17... Bxa4 {[%clk 0:01:58.1]} 18. f4
{[%clk 0:01:51.1]} 18... exf4 {[%clk 0:01:42]} 19. Bxf4 {[%clk 0:01:49.3]} 19...
d5 {[%clk 0:01:41.4]} 20. e5 {[%clk 0:01:38]} 20... dxc4 {[%clk 0:01:29.7]} 21.
exf6 {[%clk 0:01:36.9]} 21... Ng6 {[%clk 0:01:07.5]} 22. fxg7 {[%clk 0:01:33.1]}
22... Re8 {[%clk 0:00:55.3]} 23. Qg4 {[%clk 0:01:17.9]} 23... Qxd3 {[%clk
0:00:47.8]} 24. Bxh6 {[%clk 0:01:05.3]} 24... Bd7 {[%clk 0:00:37.3]} 25. Qh5
{[%clk 0:00:57.7]} 25... Nxh4 {[%clk 0:00:16.1]} 26. Qxf7+ {[%clk 0:00:55.9]}
26... Kh7 {[%clk 0:00:15.7]} 27. g8=Q+ {[%clk 0:00:55]} 27... Kxh6 {[%clk
0:00:14.5]} 28. Qgg7# {[%clk 0:00:54]} 1-0

[Event "*** SCC Grand Prix: Titled Tuesday Blitz"]
[Site "Chess.com"]
[Date "2020.08.11"]
[Round "6"]
[White "hongnhung1234"]
[Black "tlomigtlis"]
[Result "1-0"]
[WhiteElo "2272"]
[BlackElo "2419"]
[TimeControl "180+1"]
[EndTime "11:06:15 PDT"]
[Termination "hongnhung1234 won by checkmate"]

1. e4 {[%clk 0:03:00.9]} 1... c5 {[%clk 0:02:59.6]} 2. Nc3 {[%clk 0:03:00.8]}
2... d6 {[%clk 0:02:58.1]} 3. f4 {[%clk 0:03:00.9]} 3... g6 {[%clk 0:02:57.9]}
4. Nf3 {[%clk 0:03:00.8]} 4... Bg7 {[%clk 0:02:58.2]} 5. Bc4 {[%clk 0:03:01]}
5... Nc6 {[%clk 0:02:57.9]} 6. O-O {[%clk 0:03:01]} 6... e6 {[%clk 0:02:58.1]}
7. d3 {[%clk 0:03:01.1]} 7... Nge7 {[%clk 0:02:58.2]} 8. Qe1 {[%clk 0:03:00.9]}
8... O-O {[%clk 0:02:58.5]} 9. f5 {[%clk 0:03:01.1]} 9... gxf5 {[%clk
0:02:33.4]} 10. Qh4 {[%clk 0:02:56.7]} 10... Ng6 {[%clk 0:02:27.8]} 11. Qh5
{[%clk 0:02:56.4]} 11... Nce5 {[%clk 0:02:21.7]} 12. Nxe5 {[%clk 0:02:55.6]}
12... Nxe5 {[%clk 0:02:12.7]} 13. exf5 {[%clk 0:02:49.4]} 13... exf5 {[%clk
0:01:41.3]} 14. Bg5 {[%clk 0:02:42.3]} 14... Bf6 {[%clk 0:01:14]} 15. Bxf6
{[%clk 0:02:23.1]} 15... Qxf6 {[%clk 0:01:14.9]} 16. Nd5 {[%clk 0:02:21.8]}
16... Qg7 {[%clk 0:01:13.5]} 17. Rae1 {[%clk 0:02:13.5]} 17... Kh8 {[%clk
0:01:01.1]} 18. Re3 {[%clk 0:02:03.6]} 18... Qg6 {[%clk 0:00:37.7]} 19. Qh4
{[%clk 0:01:52.3]} 19... Ng4 {[%clk 0:00:31.4]} 20. Rg3 {[%clk 0:01:22.4]} 20...
b5 {[%clk 0:00:18.8]} 21. Bb3 {[%clk 0:00:56.4]} 21... Rg8 {[%clk 0:00:08.1]}
22. Ne7 {[%clk 0:00:54]} 22... Qf6 {[%clk 0:00:06.2]} 23. Qxf6+ {[%clk
0:00:51.3]} 23... Nxf6 {[%clk 0:00:07.1]} 24. Nxg8 {[%clk 0:00:51.4]} 24... Nxg8
{[%clk 0:00:08]} 25. Bxf7 {[%clk 0:00:51.1]} 25... Nf6 {[%clk 0:00:05.9]} 26.
Re1 {[%clk 0:00:47.3]} 26... Bb7 {[%clk 0:00:04.2]} 27. Re7 {[%clk 0:00:46]}
27... Bc6 {[%clk 0:00:04.5]} 28. Be6 {[%clk 0:00:45.5]} 28... Rf8 {[%clk
0:00:04.1]} 29. Bxf5 {[%clk 0:00:45.4]} 29... Nh5 {[%clk 0:00:04.1]} 30. Rxh7#
{[%clk 0:00:45.4]} 1-0

[Event "*** SCC Grand Prix: Titled Tuesday Blitz"]
[Site "Chess.com"]
[Date "2020.08.11"]
[Round "6"]
[White "MasterKroket"]
[Black "gusmaster2262"]
[Result "1-0"]
[WhiteElo "2415"]
[BlackElo "2220"]
[TimeControl "180+1"]
[EndTime "11:06:15 PDT"]
[Termination "MasterKroket won on time"]

1. d4 {[%clk 0:03:00.9]} 1... Nf6 {[%clk 0:02:59.7]} 2. c4 {[%clk 0:03:01.3]}
2... g6 {[%clk 0:02:59.2]} 3. Nc3 {[%clk 0:03:01.1]} 3... d5 {[%clk 0:02:59.1]}
4. cxd5 {[%clk 0:03:02]} 4... Nxd5 {[%clk 0:02:59.1]} 5. e4 {[%clk 0:03:02.7]}
5... Nxc3 {[%clk 0:02:59.6]} 6. bxc3 {[%clk 0:03:03.5]} 6... Bg7 {[%clk
0:02:59.9]} 7. Be3 {[%clk 0:03:04.1]} 7... O-O {[%clk 0:03:00.1]} 8. Qd2 {[%clk
0:03:03.9]} 8... c5 {[%clk 0:03:00.1]} 9. Nf3 {[%clk 0:03:04.5]} 9... Qa5 {[%clk
0:02:59.5]} 10. Rb1 {[%clk 0:03:03.8]} 10... Nd7 {[%clk 0:02:50.5]} 11. Rb5
{[%clk 0:03:01.1]} 11... Qc7 {[%clk 0:02:46.6]} 12. d5 {[%clk 0:03:00.3]} 12...
a6 {[%clk 0:02:45.3]} 13. Rb1 {[%clk 0:02:59.3]} 13... b5 {[%clk 0:02:42.5]} 14.
Be2 {[%clk 0:02:52]} 14... Nf6 {[%clk 0:02:26.2]} 15. Qc2 {[%clk 0:02:48.7]}
15... Nxe4 {[%clk 0:02:20.3]} 16. Qxe4 {[%clk 0:02:17]} 16... Bf5 {[%clk
0:02:19.2]} 17. Qh4 {[%clk 0:02:17.7]} 17... Bxb1 {[%clk 0:02:16.4]} 18. O-O
{[%clk 0:02:17.9]} 18... Bf5 {[%clk 0:02:10.3]} 19. g4 {[%clk 0:02:11.6]} 19...
Bd7 {[%clk 0:02:01.6]} 20. Ng5 {[%clk 0:02:09.7]} 20... h6 {[%clk 0:01:55.1]}
21. Ne4 {[%clk 0:02:09.6]} 21... g5 {[%clk 0:01:20.2]} 22. Qh5 {[%clk
0:01:57.9]} 22... f5 {[%clk 0:01:11.4]} 23. Nxc5 {[%clk 0:01:53.5]} 23... f4
{[%clk 0:01:06.2]} 24. Bd4 {[%clk 0:01:51.9]} 24... Rf7 {[%clk 0:00:47.4]} 25.
Bd3 {[%clk 0:01:45.3]} 25... Bxd4 {[%clk 0:00:37.9]} 26. cxd4 {[%clk 0:01:43.7]}
26... Qd6 {[%clk 0:00:17.3]} 27. Be4 {[%clk 0:01:43.3]} 27... Raf8 {[%clk
0:00:15.5]} 28. Nd3 {[%clk 0:01:30.4]} 28... Rg7 {[%clk 0:00:12.9]} 29. Ne5
{[%clk 0:01:30.2]} 29... Be8 {[%clk 0:00:12.8]} 30. Qh3 {[%clk 0:01:30]} 30...
Qf6 {[%clk 0:00:12.5]} 31. Rc1 {[%clk 0:01:26.6]} 31... Bf7 {[%clk 0:00:10.6]}
32. Rc6 {[%clk 0:01:24.3]} 32... e6 {[%clk 0:00:10.6]} 33. d6 {[%clk 0:01:23.1]}
33... Qd8 {[%clk 0:00:09.9]} 34. Qa3 {[%clk 0:01:18.7]} 34... Be8 {[%clk
0:00:09.7]} 35. Rxa6 {[%clk 0:01:17.5]} 35... Rf6 {[%clk 0:00:06.6]} 36. Ra8
{[%clk 0:01:15.8]} 36... Qb6 {[%clk 0:00:02.4]} 37. Rxe8+ {[%clk 0:01:15.7]}
37... Rf8 {[%clk 0:00:02.4]} 38. d7 {[%clk 0:01:15.1]} 1-0

[Event "*** SCC Grand Prix: Titled Tuesday Blitz"]
[Site "Chess.com"]
[Date "2020.08.11"]
[Round "6"]
[White "Alexandr_Kholin"]
[Black "Cambek64"]
[Result "1-0"]
[WhiteElo "2508"]
[BlackElo "2309"]
[TimeControl "180+1"]
[EndTime "11:06:22 PDT"]
[Termination "Alexandr_Kholin won by resignation"]

1. d4 {[%clk 0:03:00.9]} 1... d6 {[%clk 0:02:51.6]} 2. c4 {[%clk 0:02:59.3]}
2... e5 {[%clk 0:02:51.8]} 3. Nf3 {[%clk 0:02:57.4]} 3... e4 {[%clk 0:02:49.6]}
4. Ng5 {[%clk 0:02:56.9]} 4... f5 {[%clk 0:02:48.4]} 5. Nc3 {[%clk 0:02:54.8]}
5... Be7 {[%clk 0:02:44.7]} 6. Nh3 {[%clk 0:02:47]} 6... Be6 {[%clk 0:02:40.1]}
7. e3 {[%clk 0:02:44.9]} 7... Bf7 {[%clk 0:02:36.1]} 8. Nf4 {[%clk 0:02:43.2]}
8... Nf6 {[%clk 0:02:34]} 9. Be2 {[%clk 0:02:41.9]} 9... c6 {[%clk 0:02:33.1]}
10. O-O {[%clk 0:02:38.9]} 10... Nbd7 {[%clk 0:02:26.4]} 11. a4 {[%clk
0:02:35.7]} 11... O-O {[%clk 0:02:15]} 12. f3 {[%clk 0:02:34.7]} 12... g5 {[%clk
0:02:07.8]} 13. Nh3 {[%clk 0:02:31.2]} 13... exf3 {[%clk 0:02:06]} 14. gxf3
{[%clk 0:02:32.1]} 14... h6 {[%clk 0:01:58.8]} 15. a5 {[%clk 0:02:29]} 15... d5
{[%clk 0:01:48.9]} 16. b3 {[%clk 0:02:22.8]} 16... a6 {[%clk 0:01:47.7]} 17. Bd2
{[%clk 0:02:20.5]} 17... Be6 {[%clk 0:01:41.6]} 18. Nf2 {[%clk 0:02:07.9]} 18...
Bd6 {[%clk 0:01:41.7]} 19. Kg2 {[%clk 0:02:02.4]} 19... Kh8 {[%clk 0:01:34]} 20.
e4 {[%clk 0:01:48]} 20... dxe4 {[%clk 0:01:29.2]} 21. fxe4 {[%clk 0:01:46.8]}
21... fxe4 {[%clk 0:01:29.3]} 22. Nfxe4 {[%clk 0:01:46.2]} 22... Nxe4 {[%clk
0:01:22]} 23. Nxe4 {[%clk 0:01:47.1]} 23... Bc7 {[%clk 0:01:21.4]} 24. Bg4
{[%clk 0:01:32.2]} 24... Bxg4 {[%clk 0:01:12.7]} 25. Qxg4 {[%clk 0:01:30.6]}
25... Nf6 {[%clk 0:01:09]} 26. Nxf6 {[%clk 0:01:22.9]} 26... Rxf6 {[%clk
0:01:05.5]} 27. Rxf6 {[%clk 0:00:58.9]} 27... Qxf6 {[%clk 0:01:04.6]} 28. Rf1
{[%clk 0:00:54.4]} 28... Qd6 {[%clk 0:01:04.9]} 29. Qh5 {[%clk 0:00:51.7]} 29...
Rf8 {[%clk 0:00:59.1]} 30. Rxf8+ {[%clk 0:00:46.4]} 30... Qxf8 {[%clk
0:00:58.5]} 31. Bxg5 {[%clk 0:00:44.9]} 31... Bf4 {[%clk 0:00:53.1]} 32. Bxf4
{[%clk 0:00:41.9]} 32... Qxf4 {[%clk 0:00:52.5]} 33. Qe5+ {[%clk 0:00:42.8]}
33... Qxe5 {[%clk 0:00:51.5]} 34. dxe5 {[%clk 0:00:43.7]} 34... Kg7 {[%clk
0:00:48.5]} 35. Kf3 {[%clk 0:00:43.6]} 35... Kg6 {[%clk 0:00:43.3]} 36. Ke4
{[%clk 0:00:42.3]} 36... h5 {[%clk 0:00:43.7]} 37. h4 {[%clk 0:00:41.5]} 1-0

[Event "*** SCC Grand Prix: Titled Tuesday Blitz"]
[Site "Chess.com"]
[Date "2020.08.11"]
[Round "6"]
[White "Oglob71"]
[Black "Gerodot71"]
[Result "1-0"]
[WhiteElo "2574"]
[BlackElo "2407"]
[TimeControl "180+1"]
[EndTime "11:06:23 PDT"]
[Termination "Oglob71 won on time"]

1. d4 {[%clk 0:03:00.9]} 1... Nf6 {[%clk 0:02:59.9]} 2. Nf3 {[%clk 0:02:59]}
2... d5 {[%clk 0:02:58.8]} 3. e3 {[%clk 0:02:58.9]} 3... g6 {[%clk 0:02:52.7]}
4. c4 {[%clk 0:02:58.2]} 4... Bg7 {[%clk 0:02:51.2]} 5. b4 {[%clk 0:02:58.7]}
5... O-O {[%clk 0:02:48.3]} 6. Bb2 {[%clk 0:02:57.7]} 6... c6 {[%clk 0:02:44.5]}
7. Nbd2 {[%clk 0:02:55.2]} 7... Nbd7 {[%clk 0:02:42.7]} 8. a4 {[%clk 0:02:53.5]}
8... b6 {[%clk 0:02:40.7]} 9. Qb3 {[%clk 0:02:46.7]} 9... Bb7 {[%clk 0:02:39.4]}
10. Be2 {[%clk 0:02:46.1]} 10... c5 {[%clk 0:02:37.9]} 11. bxc5 {[%clk
0:02:44.1]} 11... bxc5 {[%clk 0:02:29.6]} 12. Qxb7 {[%clk 0:02:43.6]} 12... Rb8
{[%clk 0:02:30]} 13. Qxa7 {[%clk 0:02:42.8]} 13... Rxb2 {[%clk 0:02:30.1]} 14.
O-O {[%clk 0:02:41.3]} 14... Ne4 {[%clk 0:01:48.2]} 15. Rfd1 {[%clk 0:02:40.2]}
15... Nc3 {[%clk 0:01:46.6]} 16. Re1 {[%clk 0:02:40.1]} 16... Nxe2+ {[%clk
0:01:39.5]} 17. Rxe2 {[%clk 0:02:40.5]} 17... dxc4 {[%clk 0:01:39.7]} 18. Ree1
{[%clk 0:02:19.9]} 18... c3 {[%clk 0:01:35.9]} 19. Nc4 {[%clk 0:02:19.6]} 19...
Rb4 {[%clk 0:01:35.7]} 20. Nce5 {[%clk 0:02:10.6]} 20... Nxe5 {[%clk 0:01:35.6]}
21. dxe5 {[%clk 0:02:10.3]} 21... Qd5 {[%clk 0:00:47.4]} 22. Qxe7 {[%clk
0:02:07.3]} 22... c2 {[%clk 0:00:47.6]} 23. Rac1 {[%clk 0:02:02.8]} 23... Qb3
{[%clk 0:00:44.6]} 24. Qxc5 {[%clk 0:02:01.2]} 24... Rc4 {[%clk 0:00:44.5]} 25.
Qb5 {[%clk 0:02:01.3]} 25... Qa2 {[%clk 0:00:42.1]} 26. h4 {[%clk 0:01:54.7]}
26... Rfc8 {[%clk 0:00:40.6]} 27. a5 {[%clk 0:01:53.4]} 27... R4c5 {[%clk
0:00:39.8]} 28. Qd3 {[%clk 0:01:51.1]} 28... Qxa5 {[%clk 0:00:38.4]} 29. Re2
{[%clk 0:01:49.4]} 29... Qc7 {[%clk 0:00:34.6]} 30. Nd4 {[%clk 0:01:46.6]} 30...
Bxe5 {[%clk 0:00:31.3]} 31. h5 {[%clk 0:01:24.9]} 31... Bxd4 {[%clk 0:00:31.1]}
32. exd4 {[%clk 0:01:24.9]} 32... Rc3 {[%clk 0:00:31.3]} 33. Qe4 {[%clk
0:01:21.2]} 33... Qd8 {[%clk 0:00:28.7]} 34. h6 {[%clk 0:01:19.6]} 34... Kf8
{[%clk 0:00:12.5]} 35. Qe5 {[%clk 0:01:09.7]} 35... f6 {[%clk 0:00:08.1]} 36.
Qe6 {[%clk 0:01:10.1]} 36... R3c7 {[%clk 0:00:03]} 37. Qb6 {[%clk 0:01:04.3]}
1-0

[Event "*** SCC Grand Prix: Titled Tuesday Blitz"]
[Site "Chess.com"]
[Date "2020.08.11"]
[Round "6"]
[White "Artyom_ChessMate"]
[Black "Ave_Mariia"]
[Result "1-0"]
[WhiteElo "2565"]
[BlackElo "2390"]
[TimeControl "180+1"]
[EndTime "11:06:24 PDT"]
[Termination "Artyom_ChessMate won by resignation"]

1. e4 {[%clk 0:03:00.9]} 1... c5 {[%clk 0:02:59]} 2. Nc3 {[%clk 0:02:58.6]} 2...
d6 {[%clk 0:02:56.9]} 3. f4 {[%clk 0:02:58.5]} 3... g6 {[%clk 0:02:55.9]} 4. Nf3
{[%clk 0:02:59.4]} 4... Bg7 {[%clk 0:02:56.1]} 5. Bc4 {[%clk 0:02:59.9]} 5...
Nc6 {[%clk 0:02:56.1]} 6. O-O {[%clk 0:02:59.9]} 6... e6 {[%clk 0:02:53.6]} 7.
f5 {[%clk 0:02:59.2]} 7... exf5 {[%clk 0:02:31.9]} 8. d3 {[%clk 0:02:57.8]} 8...
Nge7 {[%clk 0:02:26.3]} 9. Qe1 {[%clk 0:02:57.7]} 9... O-O {[%clk 0:02:25.3]}
10. Qh4 {[%clk 0:02:57.6]} 10... d5 {[%clk 0:01:31.8]} 11. exd5 {[%clk
0:02:50.3]} 11... Nd4 {[%clk 0:01:27.9]} 12. Bg5 {[%clk 0:02:47]} 12... Re8
{[%clk 0:01:23.9]} 13. Rae1 {[%clk 0:02:37.7]} 13... Bf8 {[%clk 0:01:11.1]} 14.
Bf6 {[%clk 0:02:14.8]} 14... Qd6 {[%clk 0:01:00.3]} 15. Be5 {[%clk 0:02:01.3]}
15... Qb6 {[%clk 0:00:53.8]} 16. d6 {[%clk 0:02:01.3]} 16... Nxf3+ {[%clk
0:00:28.2]} 17. Rxf3 {[%clk 0:02:00]} 17... Bg7 {[%clk 0:00:19.9]} 18. Bxg7
{[%clk 0:01:23.9]} 18... Kxg7 {[%clk 0:00:20.8]} 19. Rxe7 {[%clk 0:01:15.1]}
19... Be6 {[%clk 0:00:19]} 20. Bxe6 {[%clk 0:01:11.3]} 20... Rxe7 {[%clk
0:00:18.3]} 21. Qxe7 {[%clk 0:01:12.2]} 21... c4+ {[%clk 0:00:16.9]} 22. Rf2
{[%clk 0:00:59.6]} 22... Rf8 {[%clk 0:00:16.4]} 23. Bxc4 {[%clk 0:00:58.2]}
23... Qxb2 {[%clk 0:00:16]} 24. Nd5 {[%clk 0:00:56.1]} 24... Qa1+ {[%clk
0:00:15.4]} 25. Rf1 {[%clk 0:00:56]} 25... Qd4+ {[%clk 0:00:15.7]} 26. Kh1
{[%clk 0:00:55.6]} 26... b5 {[%clk 0:00:15.1]} 27. Bb3 {[%clk 0:00:54.7]} 27...
a5 {[%clk 0:00:15]} 28. Nf4 {[%clk 0:00:51.9]} 28... Kg8 {[%clk 0:00:10]} 29. d7
{[%clk 0:00:47.6]} 29... a4 {[%clk 0:00:08.4]} 30. Bd5 {[%clk 0:00:47.9]} 30...
Qb6 {[%clk 0:00:07.8]} 31. Ne6 {[%clk 0:00:41.5]} 1-0

[Event "*** SCC Grand Prix: Titled Tuesday Blitz"]
[Site "Chess.com"]
[Date "2020.08.11"]
[Round "6"]
[White "lider34"]
[Black "DFeco"]
[Result "1-0"]
[WhiteElo "2391"]
[BlackElo "2183"]
[TimeControl "180+1"]
[EndTime "11:06:24 PDT"]
[Termination "lider34 won by resignation"]

1. e4 {[%clk 0:03:00.9]} 1... e5 {[%clk 0:02:59.6]} 2. Nc3 {[%clk 0:02:59.5]}
2... Nf6 {[%clk 0:02:56.7]} 3. g3 {[%clk 0:02:59.3]} 3... Nc6 {[%clk 0:02:54.7]}
4. Bg2 {[%clk 0:02:59.1]} 4... Bc5 {[%clk 0:02:54.4]} 5. Nge2 {[%clk 0:02:58.8]}
5... O-O {[%clk 0:02:54.3]} 6. O-O {[%clk 0:02:58.5]} 6... Nd4 {[%clk
0:02:46.1]} 7. d3 {[%clk 0:02:57]} 7... d6 {[%clk 0:02:42.4]} 8. h3 {[%clk
0:02:56.8]} 8... a6 {[%clk 0:02:37.6]} 9. Kh2 {[%clk 0:02:55.7]} 9... h6 {[%clk
0:02:28.5]} 10. Be3 {[%clk 0:02:51.6]} 10... Qd7 {[%clk 0:02:18]} 11. Qd2 {[%clk
0:02:40.8]} 11... Nxe2 {[%clk 0:01:41.1]} 12. Nxe2 {[%clk 0:02:35.7]} 12... Bxe3
{[%clk 0:01:38.2]} 13. Qxe3 {[%clk 0:02:30.6]} 13... d5 {[%clk 0:01:32.3]} 14.
exd5 {[%clk 0:02:16.2]} 14... Nxd5 {[%clk 0:01:31.2]} 15. Qxe5 {[%clk 0:02:15]}
15... Re8 {[%clk 0:01:28.4]} 16. Qxd5 {[%clk 0:02:13.9]} 16... Qxd5 {[%clk
0:01:25.7]} 17. Bxd5 {[%clk 0:02:12.1]} 17... Rxe2 {[%clk 0:01:25.8]} 18. Rac1
{[%clk 0:01:53.4]} 18... c6 {[%clk 0:01:23]} 19. Bf3 {[%clk 0:01:51.8]} 19...
Rd2 {[%clk 0:01:23]} 20. Kg2 {[%clk 0:01:45.1]} 20... Be6 {[%clk 0:01:22.4]} 21.
a3 {[%clk 0:01:41.3]} 21... Bd5 {[%clk 0:01:17.8]} 22. Rfd1 {[%clk 0:01:34.6]}
22... Re2 {[%clk 0:01:12.5]} 23. Re1 {[%clk 0:01:18]} 23... Rae8 {[%clk
0:01:09.9]} 24. Rxe2 {[%clk 0:01:14.2]} 24... Rxe2 {[%clk 0:01:09.7]} 25. Bxd5
{[%clk 0:01:12]} 25... cxd5 {[%clk 0:01:09.6]} 26. Kf3 {[%clk 0:01:12.9]} 26...
Re6 {[%clk 0:01:08.3]} 27. c4 {[%clk 0:00:54.2]} 27... d4 {[%clk 0:01:00]} 28.
b4 {[%clk 0:00:53.7]} 28... Kf8 {[%clk 0:00:58.4]} 29. c5 {[%clk 0:00:53.4]}
29... Ke7 {[%clk 0:00:58.2]} 30. Rc4 {[%clk 0:00:52.9]} 30... Kd7 {[%clk
0:00:51.1]} 31. Rxd4+ {[%clk 0:00:52.3]} 31... Kc6 {[%clk 0:00:49.3]} 32. Re4
{[%clk 0:00:47.8]} 32... Rf6+ {[%clk 0:00:48.2]} 33. Rf4 {[%clk 0:00:46.9]}
33... Re6 {[%clk 0:00:46.3]} 34. Rxf7 {[%clk 0:00:45.8]} 34... Re1 {[%clk
0:00:45.7]} 35. Rxg7 {[%clk 0:00:44.7]} 35... Rd1 {[%clk 0:00:45.8]} 36. Ke2
{[%clk 0:00:42.4]} 36... Ra1 {[%clk 0:00:45.5]} 37. Rg6+ {[%clk 0:00:42.3]}
37... Kc7 {[%clk 0:00:45.9]} 38. Rxh6 {[%clk 0:00:41.7]} 38... Rxa3 {[%clk
0:00:45.9]} 39. Rb6 {[%clk 0:00:40.6]} 39... Rb3 {[%clk 0:00:43.6]} 40. h4
{[%clk 0:00:38.5]} 40... Rb2+ {[%clk 0:00:43.6]} 41. Ke3 {[%clk 0:00:37.1]} 1-0